fUSD/lending_fUSD_20241023
["ID","MTS","AMOUNT","RATE_DAILY","PERIOD"]
[340724742,1729720245569,-7088.05027184,0.00044307,15]
[340724743,1729720245578,-34561.02056552,0.000448,60]
[340724744,1729720245587,-174.0,0.00045,90]
[340724745,1729720245597,-150.0,0.00045081,120]
[340724746,1729720245607,-150.0,0.00045786,120]
[340724747,1729720245617,-520.01,0.00046086,2]
[340724748,1729720245627,-167.21705784,0.00046667,24]
[340724749,1729720245636,-525.718646,0.000471,69]
[340724750,1729720245645,-375.0,0.00047237,14]
[340724751,1729720245655,-174.0,0.00047682,90]
[340724752,1729720245664,-150.57,0.00048,120]
[340724753,1729720245673,-150.57,0.00048,120]
[340724754,1729720245683,-150.57,0.00048,120]
[340724755,1729720245692,-150.57,0.00048,120]
[340724756,1729720245702,-150.57,0.00048,120]
[340724757,1729720245711,-150.57,0.00048,120]
[340724758,1729720245720,-150.57,0.00048,120]
[340724759,1729720245730,-150.57,0.00048,120]
[340724760,1729720245739,-150.57,0.00048,120]
[340724761,1729720245749,-150.57,0.00048,120]
[340724762,1729720245758,-150.57,0.00048,120]
[340724763,1729720245768,-150.57,0.00048,120]
[340724764,1729720245777,-150.57,0.00048,120]
[340724765,1729720245786,-150.57,0.00048,120]
[340724766,1729720245796,-150.57,0.00048,120]
[340724767,1729720245805,-150.57,0.00048,120]
[340724768,1729720245814,-150.57,0.00048,120]
[340724769,1729720245824,-150.57,0.00048,120]
[340724770,1729720245833,-150.57,0.00048,120]
[340724771,1729720245842,-150.57,0.00048,120]
[340724772,1729720245852,-150.57,0.00048,120]
[340724773,1729720245861,-167.0,0.00048053,2]
[340724774,1729720245870,-520.01,0.0004835,2]
[340724775,1729720245879,-2640.0,0.000493,2]
[340724776,1729720245889,-163.52,0.00049806,120]
[340724777,1729720245899,-750.0,0.00049977,14]
[340724778,1729720245908,-153.6179694,0.0005,120]
[340724779,1729720245917,-12500.0,0.0005,120]
[340724780,1729720245927,-12500.0,0.00050125,120]
[340724781,1729720245935,-495.91862713,0.00050138,10]
[340724782,1729720245945,-7088.05027184,0.0005019,15]
[340724783,1729720245953,-26565.412,0.0005025,120]
[340724784,1729720245962,-26565.413,0.0005025,120]
[340724785,1729720245971,-26565.413,0.0005025,120]
[340724786,1729720245980,-26565.413,0.0005025,120]
[340724787,1729720245990,-26565.412,0.0005025,120]
[340724788,1729720246000,-12500.0,0.0005025,120]
[340724789,1729720246009,-12500.0,0.00050375,120]
[340724790,1729720246020,-520.01,0.00050614,2]
[340724791,1729720246029,-920.39444595,0.00051149,28]
[340724792,1729720246039,-151.0,0.00052,120]
[340724793,1729720246050,-167.0,0.00052018,2]
[340724794,1729720246061,-151.0,0.00052055,120]
[340724795,1729720246072,-151.0,0.00052055,120]
[340724796,1729720246082,-151.0,0.00052055,120]
[340724797,1729720246091,-280.615505,0.00052055,120]
[340724798,1729720246101,-502.697512,0.000524,90]
[340724799,1729720246112,-317.46,0.000524,120]
[340724800,1729720246122,-997.76,0.000524,120]
[340724801,1729720246133,-151.0,0.00052415,10]
[340724802,1729720246143,-1125.0,0.00052716,14]
[340724803,1729720246153,-264.563,0.00052727,97]
[340724804,1729720246162,-520.01,0.00052878,2]
[340724805,1729720246171,-502.697512,0.000538,96]
[340724806,1729720246181,-150.0,0.00054,2]
[340724807,1729720246190,-35000.0,0.00054687,10]
[340724808,1729720246199,-26987.14446016,0.00055,120]
[340724809,1729720246209,-19588.35535931,0.00055,120]
[340724810,1729720246220,-27548.24599421,0.00055,120]
[340724811,1729720246229,-520.01,0.00055141,2]
[340724812,1729720246240,-1500.0,0.00055456,14]
[340724813,1729720246250,-151.0,0.00055808,120]
[340724814,1729720246259,-167.0,0.00055984,2]
[340724815,1729720246270,-7088.05027184,0.00056073,15]
[340724816,1729720246279,-12782.85745246,0.000569,120]
[340724817,1729720246288,-167.21705784,0.00057256,68]
[340724818,1729720246298,-214.93,0.000574,7]
[340724819,1729720246308,-520.01,0.00057405,2]
[340724821,1729720246317,-1029.225,0.00058196,14]
[340724822,1729720246326,-920.39444595,0.00058401,28]
[340724823,1729720246335,-151.0,0.00059616,120]
[340724824,1729720246346,-25680.0,0.0005993,120]
[340724825,1729720246357,-151.0,0.0006,120]
[340724826,1729720246366,-150.0,0.00060032,120]
[340724827,1729720246376,-150.0,0.00060315,120]
[340724828,1729720246385,-3884.069,0.00060315,120]
[340724829,1729720246395,-1151.0,0.00060315,120]
[340724830,1729720246405,-691.0,0.00060599,120]
[340724831,1729720246414,-691.0,0.00060599,120]
[340724832,1729720246424,-691.0,0.00060599,120]
[340724833,1729720246435,-691.0,0.00060599,120]
[340724834,1729720246444,-691.0,0.00060599,120]
[340724835,1729720246455,-691.0,0.00060599,120]
[340724836,1729720246466,-691.0,0.00060599,120]
[340724837,1729720246477,-691.0,0.00060599,120]
[340724838,1729720246487,-648.66,0.00060599,120]
[340724839,1729720246497,-12482.0,0.0006085,120]
[340724840,1729720246512,-9800.0,0.000609,22]
[340724841,1729720246522,-1958.59046451,0.00061,30]
[340724842,1729720246531,-13053.26305733,0.00061,30]
[340724843,1729720246540,-261.06526115,0.00061,30]
[340724844,1729720246551,-59999.999999,0.00061,30]
[340724845,1729720246561,-546.78297075,0.00061757,2]
[340724846,1729720246570,-11182.2089383,0.00061857,2]
[340724847,1729720246581,-50000.0,0.0006187,120]
[340724848,1729720246591,-7088.05027184,0.00061957,15]
[340724849,1729720246601,-150.0,0.00062,120]
[340724850,1729720246611,-163.52,0.00062257,120]
[340724851,1729720246622,-12300.0,0.000629,22]
[340724852,1729720246631,-1128.66716111,0.0006299,7]
[340724853,1729720246640,-500000.0,0.00063,120]
[340724854,1729720246649,-857716.8421519,0.00063,120]
[340724855,1729720246710,-263.590502,0.00063,120]
[340724856,1729720246721,-11722.93948,0.00063,120]
[340724857,1729720246732,-1618.86926637,0.00063,120]
[340724858,1729720246764,-1329.4,0.00063,120]
[340724859,1729720246777,-1261.31414876,0.00063,120]
[340724864,1729720246923,-10.09388189,0.00063,120]
[340724865,1729720246934,-126076.95056908,0.00063,120]
[340724866,1729720246943,-150.0,0.00063315,120]
[340724867,1729720246952,-151.0,0.00063425,120]
[340724868,1729720246963,-36117.32272024,0.000635,120]
[340724869,1729720246976,-53579.3300255,0.000635,120]
[340724870,1729720246988,-292.35005528,0.000635,120]
[340724871,1729720247045,-151.0,0.00015,2]
[340724872,1729720247056,-151.0,0.00015733,2]
[340724873,1729720247067,-151.0,0.00018356,2]
[340724874,1729720247079,-2120.05718118,0.00032425,2]
[340724875,1729720247089,-259.58606668,0.00032425,2]
[340724876,1729720458473,154.99,0.00014111,2]
[340724877,1729720625656,-150.0,0.00014887,2]
[340724878,1729720625681,-151.0,0.00015,2]
[340724879,1729720649210,150.0,0.00014885,2]
[340724880,1729720741257,300.0,0.00019725,2]
[340724894,1729720893602,150.0,0.0001726,2]
[340724897,1729720911652,156.55,0.00015342,2]
[340724905,1729720996153,150.0,0.0001726,2]
[340724906,1729721007561,250.0,0.0001,2]
[340724907,1729721008647,300.0,0.00012,2]
[340724910,1729721142184,-412.85112546,0.00025,10]
[340724911,1729721143104,-500.43942181,0.00025,10]
[340724912,1729721143125,-317.97696528,0.00027297,2]
[340724913,1729721143151,-352.64673123,0.00027397,2]
[340724914,1729721302119,192.12,0.00019178,2]
[340724915,1729721354098,-22.35326877,0.00027397,2]
[340724916,1729721354118,-750.0,0.00030136,2]
[340724917,1729721354138,-540.0,0.000326,2]
[340724918,1729721354158,-1125.0,0.00032876,2]
[340724919,1729721354180,-347.552,0.00033638,36]
[340724937,1729721431517,-611.33042846,0.00035516,2]
[340724966,1729721431679,-400.09899213,0.00035516,2]
[340724968,1729721431692,-370.82717941,0.00035516,2]
[340724969,1729721431702,-1500.0,0.00035616,2]
[340724970,1729721431712,-1875.0,0.00038356,2]
[340724971,1729721431722,-150.99,0.00038356,2]
[340724972,1729721431732,-180.05,0.00039416,2]
[340724973,1729721431741,-917.088511,0.00040889,2]
[340724974,1729721431751,-2250.0,0.00041095,2]
[340724975,1729721431760,-1611.94430959,0.00043835,14]
[340724976,1729721431772,-588.90327259,0.00043835,14]
[340724977,1729721431781,-74.76943662,0.00047405,2]
[340724978,1729721431793,-75.79056338,0.00047405,2]
[340724979,1729721431802,-991.15,0.00048348,2]
[340724980,1729721431811,-163.52,0.00048409,120]
[340724981,1729721431821,-1958.28,0.00049298,2]
[340724982,1729721431832,-3000.0,0.000493,2]
[340724983,1729721431842,-150.03,0.00049427,120]
[340724984,1729721431852,-250.0,0.00049487,120]
[340724985,1729721431862,-151.06,0.00049882,2]
[340724986,1729721431871,-1852.42,0.00049991,2]
[340724987,1729721431880,-100115.0,0.0005,7]
[340724988,1729721431889,-159.66,0.00050024,2]
[340724989,1729721431899,-150.0,0.00051286,120]
[340724990,1729721431909,-250.0,0.00051672,120]
[340724991,1729721431919,-15887.08076433,0.0005174,2]
[340724992,1729721431930,-1103.55713475,0.0005174,2]
[340724993,1729721431946,-608.34396347,0.0005174,2]
[340724994,1729721431957,-4736.81216735,0.0005174,2]
[340724996,1729721431968,-1564.2059701,0.0005174,2]
[340724998,1729721431978,-151.0,0.00052,120]
[340725000,1729721431987,-367.96978346,0.000521,2]
[340725001,1729721431999,-563.10986677,0.000521,2]
[340725002,1729721432011,-1648.45779949,0.000521,2]
[340725003,1729721432023,-420.46255028,0.000521,2]
[340725004,1729721432032,-151.0,0.00052415,10]
[340725005,1729721432041,-277.90704218,0.00052729,97]
[340725006,1729721432053,-69.64595782,0.00052729,97]
[340725007,1729721432062,-150.56,0.00052782,2]
[340725008,1729721432071,-2140.32547472,0.00054005,10]
[340725009,1729721432083,-19381.38112622,0.00054005,10]
[340725011,1729721437764,-1000.0,0.00049487,120]
[340725012,1729721437773,-11266.94202488,0.00054005,10]
[340725013,1729721437783,-708.80502722,0.000546,15]
[340725014,1729721437792,-150.0,0.000547,99]
[340725015,1729721437801,-150.0,0.000548,2]
[340725016,1729721437810,-1500.0,0.000548,2]
[340725017,1729721437819,-163.37,0.000548,2]
[340725018,1729721437828,-250.0,0.00055534,120]
[340725019,1729721437837,-177.48,0.00055806,30]
[340725020,1729721437846,-200.98,0.00055822,120]
[340725021,1729721437856,-5000.0,0.00056,120]
[340725022,1729721437865,-708.80502718,0.00056078,15]
[340725023,1729721437874,-278.4,0.00056186,2]
[340725024,1729721437883,-193.41,0.00056497,2]
[340725025,1729721437892,-5000.0,0.00057,120]
[340725026,1729721437901,-201.51,0.000575,7]
[340725027,1729721437911,-1500.0,0.000575,90]
[340725028,1729721437920,-708.80502718,0.00057556,15]
[340725029,1729721437929,-1000.0,0.00057697,120]
[340725030,1729721437938,-5000.0,0.00058,120]
[340725032,1729721437949,-150.56,0.00058158,2]
[340725034,1729721437960,-151.0,0.00058329,120]
[340725036,1729721437970,-5000.0,0.00059,120]
[340725038,1729721437981,-708.80502718,0.00059033,15]
[340725040,1729721437991,-5000.0,0.0006,120]
[340725042,1729721438002,-708.80502718,0.00060511,15]
[340725044,1729721438013,-2163.0,0.000609,106]
[340725046,1729721438023,-523.0,0.000609,106]
[340725048,1729721438034,-1798.19,0.00061,120]
[340725050,1729721438044,-13537.0,0.00061561,120]
[340725052,1729721438054,-1151.0,0.00061561,120]
[340725054,1729721438066,-150.0,0.00061561,120]
[340725056,1729721438076,-5887.0,0.00061561,120]
[340725060,1729721438086,-313.995068,0.000617,2]
[340725062,1729721438098,-3497.970885,0.000617,2]
[340725063,1729721438107,-708.80502718,0.00061989,15]
[340725065,1729721438116,-405.19345943,0.00062173,2]
[340725067,1729721438125,-1508.87,0.00062192,30]
[340725069,1729721438134,-756.83,0.00062192,30]
[340725071,1729721438143,-756.83,0.00062192,30]
[340725073,1729721438152,-2702.0,0.000622,13]
[340725075,1729721438160,-756.83,0.00062205,30]
[340725077,1729721438170,-409.0,0.000629,50]
[340725079,1729721438179,-452.30130409,0.00062919,120]
[340725081,1729721438188,-4942.29,0.0006292,30]
[340725083,1729721438197,-28850.5,0.0006293,120]
[340725084,1729721438207,-25000.0,0.0006325,120]
[340725086,1729721438220,-153.39907435,0.000633,28]
[340725088,1729721438229,-443.26519762,0.000634,35]
[340725090,1729721438238,-8046.1307,0.000634,120]
[340725092,1729721438248,-7500.0,0.000634,120]
[340725094,1729721438259,-1000.0,0.00063424,120]
[340725096,1729721438269,-4942.29,0.00063451,30]
[340725098,1729721438278,-708.80502718,0.00063467,15]
[340725100,1729721438289,-16910.921337,0.0006347,15]
[340725102,1729721438299,-334.55018853,0.00063473,2]
[340725104,1729721438308,-500.0,0.00063473,2]
[340725106,1729721438317,-16910.921337,0.0006348,15]
[340725108,1729721438326,-173.64348998,0.0006348,7]
[340725110,1729721438336,-4942.29,0.0006348,30]
[340725112,1729721438347,-4942.29,0.0006348,30]
[340725114,1729721438357,-4942.29,0.0006348,30]
[340725116,1729721438367,-150.57,0.0006348,120]
[340725118,1729721438376,-150.57,0.0006348,120]
[340725120,1729721438386,-150.57,0.0006348,120]
[340725122,1729721438395,-8455.46066849,0.00063489,15]
[340725124,1729721438404,-150.57,0.00063489,120]
[340725126,1729721438414,-598.12016387,0.00063489,31]
[340725128,1729721438423,-3231.24446125,0.0006349,15]
[340725130,1729721438436,-587.83016339,0.0006349,15]
[340725132,1729721438448,-4473.06322101,0.0006349,15]
[340725135,1729721438461,-393.01182328,0.0006349,15]
[340725215,1729721439700,-210.0,0.0006348,2]
[340725216,1729721439710,-177334.98503807,0.0006349,15]
[340725217,1729721439721,-161372.85883244,0.0006349,13]
[340725218,1729721439850,-337.374,0.0006349,13]
[340725219,1729721439863,-4515.90098311,0.0006349,13]
[340725220,1729721439897,-1524.01691925,0.0006349,13]
[340725221,1729721439913,-270.525589,0.0006349,13]
[340725222,1729721439925,-534.30484756,0.0006349,13]
[340725223,1729721439945,-8232.79849072,0.0006349,13]
[340725224,1729721439959,-827.95346626,0.0006349,13]
[340725232,1729721442612,-1208.961,0.0006349,13]
[340725233,1729721442674,-796.068646,0.0006349,13]
[340725234,1729721442686,-13310.25148857,0.0006349,13]
[340725235,1729721442699,-520.26401847,0.0006349,13]
[340725236,1729721442713,-2854.01146556,0.0006349,13]
[340725237,1729721442725,-1055.52,0.0006349,13]
[340725238,1729721442790,-51252.88664506,0.0006349,13]
[340725239,1729721442801,-150.57,0.0006349,120]
[340725240,1729721442812,-150.57,0.0006349,120]
[340725241,1729721442822,-150.57,0.0006349,120]
[340725242,1729721442832,-150.57,0.0006349,120]
[340725243,1729721442843,-150.57,0.0006349,120]
[340725244,1729721442853,-150.57,0.0006349,120]
[340725245,1729721442864,-150.57,0.0006349,120]
[340725246,1729721442876,-150.57,0.0006349,120]
[340725247,1729721442886,-150.57,0.0006349,120]
[340725248,1729721442895,-150.57,0.0006349,120]
[340725249,1729721442906,-150.57,0.0006349,120]
[340725250,1729721442916,-150.57,0.0006349,120]
[340725251,1729721442926,-367.53456672,0.00063499,120]
[340725252,1729721442936,-12205.66411393,0.00063499,120]
[340725253,1729721442947,-910010.99719898,0.000635,120]
[340725254,1729721442957,-594.0,0.000635,120]
[340725255,1729721442969,-594.0,0.000635,120]
[340725256,1729721442979,-594.0,0.000635,120]
[340725257,1729721442989,-594.0,0.000635,120]
[340725258,1729721443001,-594.0,0.000635,120]
[340725259,1729721443011,-594.0,0.000635,120]
[340725260,1729721443021,-594.0,0.000635,120]
[340725261,1729721443030,-594.0,0.000635,120]
[340725262,1729721443042,-594.0,0.000635,120]
[340725263,1729721443051,-594.0,0.000635,120]
[340725264,1729721443060,-594.0,0.000635,120]
[340725265,1729721443069,-594.63055528,0.000635,120]
[340725266,1729721443078,-600.0,0.000635,23]
[340725267,1729721443089,-4692.534719,0.00063512,3]
[340725268,1729721443098,-150.56,0.00063535,2]
[340725269,1729721443108,-150.57,0.00063546,120]
[340725270,1729721443117,-8226.1232809,0.00063556,3]
[340725271,1729721443127,-49928.307194,0.00063556,3]
[340725272,1729721443136,-3288.49873829,0.000636,21]
[340725273,1729721443145,-1200.0,0.000636,23]
[340725274,1729721443154,-1800.0,0.000637,23]
[340725275,1729721443163,-8500.0,0.00063774,21]
[340725276,1729721443173,-8500.0,0.00063783,21]
[340725277,1729721443183,-8500.0,0.00063792,21]
[340725278,1729721443193,-150.57,0.000638,120]
[340725279,1729721443203,-2500.0,0.000638,23]
[340725280,1729721443214,-8500.0,0.00063801,21]
[340725281,1729721443224,-8500.0,0.0006381,21]
[340725282,1729721443235,-8500.0,0.00063818,21]
[340725283,1729721443244,-8500.0,0.00063827,21]
[340725284,1729721443253,-300.0,0.00063836,30]
[340725285,1729721443262,-150.0,0.00063836,30]
[340725286,1729721443271,-150.0,0.00063836,30]
[340725287,1729721443281,-150.0,0.00063836,30]
[340725288,1729721443290,-8500.0,0.00063836,21]
[340725289,1729721443299,-3100.0,0.000639,23]
[340725290,1729721443308,-2835.8802395,0.000639,2]
[340725291,1729721443318,-168.22997927,0.000639,2]
[340725292,1729721443327,-7454.80595886,0.000639,2]
[340725293,1729721443336,-500.0,0.00063973,15]
[340725294,1729721443345,-150.57,0.0006399,120]
[340725295,1729721443354,-150.57,0.0006399,120]
[340725296,1729721443364,-150.57,0.0006399,120]
[340725298,1729721443373,-150.57,0.0006399,120]
[340725299,1729721443382,-150.57,0.0006399,120]
[340725300,1729721443391,-150.57,0.0006399,120]
[340725301,1729721443400,-150.57,0.0006399,120]
[340725302,1729721443409,-150.57,0.0006399,120]
[340725303,1729721443418,-150.57,0.0006399,120]
[340725304,1729721443427,-150.57,0.0006399,120]
[340725305,1729721443436,-150.57,0.0006399,120]
[340725306,1729721443445,-150.57,0.0006399,120]
[340725307,1729721443455,-150.57,0.0006399,120]
[340725308,1729721443464,-150.57,0.0006399,120]
[340725309,1729721443474,-150.57,0.0006399,120]
[340725310,1729721443483,-150.57,0.0006399,120]
[340725311,1729721443493,-150.57,0.0006399,120]
[340725312,1729721443502,-150.57,0.0006399,120]
[340725313,1729721443512,-150.57,0.0006399,120]
[340725314,1729721443521,-150.57,0.0006399,120]
[340725315,1729721443531,-351885.20861909,0.00064,120]
[340725316,1729721443544,-1813.95623651,0.00064,120]
[340725317,1729721445512,-290.69621568,0.0006339,2]
[340725318,1729721445659,-20.8923588,0.0006339,2]
[340725319,1729721445669,-648.69101429,0.00064,120]
[340725320,1729721445681,-648.22745291,0.00064,120]
[340725321,1729721445693,-20353.06254934,0.00064,120]
[340725322,1729721445704,-15880.8655342,0.00064,120]
[340725323,1729721445721,-108769.98859366,0.00064,120]
[340725324,1729721445731,-62478.59285795,0.00064,120]
[340725325,1729721445742,-276.75,0.00064,120]
[340725330,1729721470564,155.48,0.00015342,2]
[340725332,1729721632766,-711.7,0.00063565,2]
[340725333,1729721632793,-150.02,0.00063635,120]
[340725334,1729721632815,-1343.53,0.00063739,2]
[340725335,1729721632842,-157.0,0.00063787,2]
[340725336,1729721632867,-500.5655,0.000639,120]
[340725337,1729721632892,-4909.80254936,0.000639,2]
[340725338,1729721632915,-229.88,0.00063955,2]
[340725339,1729721632937,-210.0,0.0006399,2]
[340725340,1729721632962,-16787.50195064,0.0006399,15]
[340725341,1729721633824,-25000.0,0.0006399,15]
[340725342,1729721635520,-25000.0,0.0006399,15]
[340725343,1729721636664,-890.0,0.00048,15]
[340725344,1729721636690,-24110.0,0.0006399,15]
[340725345,1729721638013,-25000.0,0.0006399,15]
[340725346,1729721639100,-25000.0,0.0006399,15]
[340725359,1729721807923,232.825,0.0001726,2]
[340725361,1729721975391,169.67,0.00015342,2]
[340725364,1729722310382,15826.15465776,0.000154,2]
[340725365,1729722340645,119504.17534224,0.0002,2]
[340725366,1729722353708,3870.1970081,0.000159,2]
[340725367,1729722438152,-2456.18853353,0.0002,2]
[340725369,1729722478824,46129.8029919,0.00015,2]
[340725370,1729722478854,50000.0,0.00015,2]
[340725371,1729722478881,3689.9170081,0.00015,2]
[340725372,1729722501544,15846.99062607,0.00015,2]
[340725373,1729722513489,10392.4002766,0.000145,2]
[340725376,1729722518942,595.76544838,0.000145,2]
[340725379,1729722541845,-155.48,0.00015342,2]
[340725380,1729722541869,-20111.2240877,0.00018,2]
[340725381,1729722541892,-405.8947297,0.000199,2]
[340725382,1729722542091,-54327.4011826,0.0002,2]
[340725401,1729722631772,-2296.80265338,0.0002,2]
[340725402,1729722631783,-3753.76120749,0.0002,2]
[340725403,1729722631795,-10774.44975929,0.0002,2]
[340725404,1729722631807,-122.13803043,0.0002,2]
[340725405,1729722631817,-398.49196957,0.0002,2]
[340725406,1729722631828,-3331.03179395,0.0002,2]
[340725407,1729722631841,-11108.56520842,0.0002,2]
[340725408,1729722631972,-317.505,0.0002,2]
[340725472,1729722637755,-4830.05462,0.0002,2]
[340725473,1729722637871,-4820.71820418,0.0002,2]
[340725474,1729722637881,-251.02,0.0002099,2]
[340725475,1729722637890,-251.02,0.0002099,2]
[340725476,1729722637900,-251.02,0.0002099,2]
[340725477,1729722637910,-14437.91407249,0.0002099,2]
[340725478,1729722637919,-344398.20315934,0.00021,4]
[340725479,1729722637929,-20220.66825986,0.00021,4]
[340725480,1729722637938,-20221.1072358,0.00021,4]
[340725481,1729722637949,-20220.57299894,0.00021,4]
[340725482,1729722637958,-418.68411471,0.00021989,2]
[340725483,1729722638082,-65073.87654679,0.0002199,3]
[340725487,1729722639743,-272.9102586,0.0002199,3]
[340725488,1729722639755,-1093.49270148,0.0002199,3]
[340725489,1729722639768,-253.0,0.0002199,3]
[340725490,1729722639870,-72531.20976601,0.0002199,3]
[340725491,1729722639881,-91407.96719312,0.0002199,3]
[340725492,1729722639890,-250798.2959479,0.00022,2]
[340725493,1729722639901,-992.34917274,0.00022,2]
[340725494,1729722640028,-2266.00000008,0.00022,2]
[340725495,1729722640039,-1200.0,0.00022,2]
[340725556,1729722642669,-3801.52705549,0.00022,2]
[340725563,1729722642839,-4342.00319205,0.00022,2]
[340725564,1729722642851,-526.83208673,0.00022,2]
[340725565,1729722642863,-802.06340159,0.00022,2]
[340725566,1729722642883,-8242.11193467,0.00022,2]
[340725567,1729722642894,-720.70825157,0.00022,2]
[340725568,1729722642907,-39829.3150216,0.00022,2]
[340725569,1729722642921,-3918.7910805,0.00022,2]
[340725575,1729722645681,-432.77116256,0.00022,2]
[340725576,1729722645693,-14490.12941697,0.00022,2]
[340725577,1729722645713,-2102.1426238,0.00022,2]
[340725578,1729722645743,-889.21959213,0.00022,2]
[340725579,1729722645775,-5906.1431333,0.00022,2]
[340725580,1729722645810,-205.52890368,0.00021989,2]
[340725581,1729722645820,-6363.95016771,0.00022,2]
[340725583,1729722743576,-185.74549619,0.00024,30]
[340725584,1729722811037,250.0,0.0001,2]
[340725585,1729722812179,300.0,0.00012,2]
[340725592,1729723831840,-597.99428718,0.00015242,2]
[340725593,1729723831849,-158.01,0.00015342,2]
[340725594,1729723831860,-156.55,0.00015342,2]
[340725595,1729723831869,-225.0,0.00015617,2]
[340725596,1729723831878,-180.05,0.00016094,2]
[340725597,1729723831887,-186.78,0.00018593,2]
[340725598,1729723831897,-139.93615998,0.00018593,2]
[340725599,1729723831909,-860.05384002,0.00018593,2]
[340725600,1729723831918,-3421.39,0.00019077,2]
[340725601,1729723831927,-256.47,0.00019077,2]
[340725602,1729723831937,-13008.55,0.00019178,2]
[340725603,1729723831946,-150.99,0.00019178,2]
[340725604,1729723831956,-4339.75,0.00019178,2]
[340725605,1729723831965,-6784.47,0.00019178,2]
[340725606,1729723831975,-1280.75,0.00019178,2]
[340725607,1729723831984,-1910.11,0.00019178,2]
[340725608,1729723831993,-165.43,0.00019178,2]
[340725609,1729723832002,-1000.0,0.00019349,2]
[340725610,1729723832011,-1343.53,0.00019381,2]
[340725611,1729723832020,-250.0,0.00019386,2]
[340725612,1729723832029,-181.47,0.00019414,2]
[340725613,1729723832039,-250.0,0.00019449,2]
[340725614,1729723832048,-762.79,0.00019507,2]
[340725615,1729723832057,-229.88,0.00019633,2]
[340725616,1729723832066,-646.31,0.00019633,2]
[340725617,1729723832075,-500.0,0.00019688,2]
[340725618,1729723832084,-150.0,0.00019699,2]
[340725619,1729723832094,-846.0,0.00019724,2]
[340725620,1729723832103,-200.0,0.00019771,2]
[340725621,1729723832112,-5110.82,0.00019779,2]
[340725622,1729723832122,-7440.71,0.00019819,2]
[340725623,1729723832133,-158.92,0.00019951,2]
[340725624,1729723832144,-23900.0,0.00019979,2]
[340725625,1729723832153,-150.0,0.00020021,2]
[340725626,1729723832163,-250.0,0.0002005,2]
[340725627,1729723832172,-1723.38,0.00020117,2]
[340725628,1729723832182,-711.7,0.00020708,2]
[340725629,1729723832191,-186.78,0.00020857,2]
[340725630,1729723832200,-2832.34,0.00020898,2]
[340725631,1729723832209,-2168.68,0.00021029,2]
[340725632,1729723832219,-170.95,0.00021487,2]
[340725633,1729723832228,-1000.0,0.00021768,2]
[340725634,1729723832238,-8239.63991041,0.00021803,2]
[340725635,1729723832247,-641.33,0.0002189,3]
[340725636,1729723832257,-39022.30183814,0.000219,2]
[340725637,1729723832268,-1274.32993384,0.000219,2]
[340725638,1729723832280,-628.42,0.000219,2]
[340725639,1729723832291,-2045.75766083,0.000219,2]
[340725640,1729723832302,-1285.70283055,0.000219,2]
[340725641,1729723832313,-357.46371413,0.000219,2]
[340725642,1729723832324,-9227.77587217,0.000219,2]
[340725643,1729723832340,-10402.4493057,0.000219,2]
[340725644,1729723832351,-2984.3221489,0.000219,2]
[340725645,1729723832362,-737.5985368,0.000219,2]
[340725646,1729723832373,-31821.61965894,0.000219,2]
[340725647,1729723832382,-423.6155186,0.00021903,2]